[Event "ChessKid Cup Div-III 2023"]
[Site "Online"]
[Date "2023.05.22"]
[Round "1.2"]
[White "Kamsky, Gata"]
[Black "Iniyan, P."]
[Result "1/2-1/2"]
[ECO "B90"]
[WhiteElo "2665"]
[BlackElo "2525"]
[Annotator "TA"]
[PlyCount "204"]
[EventDate "2023.05.21"]
[EventType "k.o."]
[EventCountry "NET"]
[SourceTitle "playchess.com"]
[Source "ChessBase"]
[SourceQuality "1"]
[TimeControl "900+3"]

{[%evp 83,204,-8,-8,-35,-12,-157,-150,-255,-252,-260,-267,-260,-230,-181,-140,-244,-243,-170,0,0,0,0,0,0,0,0,0,0,0,0,0,0,0,-164,0,-1496,-1406,-1273,-585,-1239,-1020,-1227,-529,-1181,-547,-1170,-16,-16,-23,-546,-23,-23,-26,-89,0,0,0,0,0,0,0,-8,-8,-8,-8,-1808,-8,-8,0,0,0,0,0,0,0,0,0,0,0,0,0,0,0,-8,-8,-8,-8,-8,-8,-8,0,0,0,-8,0,0,0,0,0,-141,-141,-29983,-29984,-29984,0,-29986,0,0,0,0,0,0,0,0,0,0,0,0,0,0,0,0,0]} 1. e4 {[%emt 0:00:07]} c5 {[%emt 0:00:07]} 2. Nf3 {[%emt 0:00:02]} d6 {[%emt 0:00:01]} 3. d4 {[%emt 0:00:02]} cxd4 {[%emt 0:00:00]} 4. Nxd4 {[%emt 0:00:01]} Nf6 {[%emt 0:00:01]} 5. Nc3 {[%emt 0:00:02]} a6 {[%emt 0:00:00]} 6. a4 {[%emt 0:00:02]} e5 {[%emt 0:00:07]} 7. Nf3 {[%emt 0:00:01]} Be7 {[%emt 0:00:10]} 8. Bc4 {[%emt 0:00:05]} Be6 {[%emt 0:00:02]} 9. Bb3 {[%emt 0:00:12]} Nbd7 {[%emt 0:00:07]} 10. Be3 {[%emt 0:00:13]} Rc8 {[%emt 0:00:03]} 11. O-O {[%emt 0:00:06]} Rxc3 {[%emt 0:00:11]} 12. bxc3 {[%emt 0:00:03]} Nxe4 {[%emt 0:00:01]} 13. Bxe6 {[%emt 0:00:43]} fxe6 {[%emt 0:00:00]} 14. Nd2 {[%emt 0:00:04]} Nef6 {[%emt 0:01:22]} 15. Qb1 {[%emt 0:01:02]} Qc7 {[%emt 0:00:31]} 16. Qb3 {[%emt 0:00:03]} Kf7 {[%emt 0:00:01]} 17. Rab1 {[%emt 0:00:04]} b5 {[%emt 0:00:17]} 18. axb5 {[%emt 0:00:03]} axb5 {[%emt 0:00:00]} 19. Qxb5 {[%emt 0:00:11]} Qxc3 {[%emt 0:00:02]} 20. Ne4 {[%emt 0:02:01]} Nxe4 {[%emt 0:00:12]} 21. Qxd7 {[%emt 0:00:01]} Qc8 {[%emt 0:02:22]} 22. Qa7 {[%emt 0:00:53]} Qa8 {[%emt 0:00:06]} 23. f4 {[%emt 0:00:18]} exf4 {[%emt 0:00:30]} 24. Rxf4+ {[%emt 0:00:03]} Nf6 {[%emt 0:00:01]} 25. c4 {[%emt 0:00:56]} Qxa7 {[%emt 0:00:18]} 26. Bxa7 {[%emt 0:00:02]} Rc8 {[%emt 0:00:01]} 27. Rb8 {[%emt 0:01:15]} Rc7 {[%emt 0:00:44]} 28. Bb6 {[%emt 0:00:07]} Rc6 {[%emt 0:00:01]} 29. Bd8 {[%emt 0:00:26]} e5 {[%emt 0:00:36]} 30. Rf1 {[%emt 0:00:07]} Bxd8 {[%emt 0:00:03]} 31. Rxd8 {[%emt 0:00:02]} Ke7 {[%emt 0:00:00]} 32. Ra8 {[%emt 0:00:08]} Rxc4 {[%emt 0:00:20]} 33. Ra7+ {[%emt 0:00:02]} Nd7 {[%emt 0:00:13]} 34. Rb1 {[%emt 0:00:12]} Rc8 {[%emt 0:00:18]} 35. Rbb7 {[%emt 0:00:04]} Rd8 {[%emt 0:00:03]} 36. Kf2 {[%emt 0:00:10]} Ke6 {[%emt 0:00:02]} 37. Ke3 {[%emt 0:00:02]} h5 {[%emt 0:00:08]} 38. h3 {[%emt 0:00:16]} g6 {[%emt 0:00:28]} 39. Rc7 {[%emt 0:00:08]} Nf6 {[%emt 0:00:50]} 40. Re7+ {[%emt 0:00:04]} Kf5 {[%emt 0:00:03]} 41. Rf7 {[%emt 0:00:01]} Rb8 {[%emt 0:00:19]} 42. Rad7 {[%emt 0:01:23]} Rb6 {[%emt 0:00:46]} 43. Rd8 {[%emt 0:00:34]} h4 {[%emt 0:00:36]} 44. Kf2 {[%emt 0:00:23]} (44. Rff8 $1 $11) 44... Kg5 $1 $17 {[%emt 0:00:20]} 45. Ke2 {[%emt 0:01:28]} (45. Ra7 $17 {was called for.}) 45... Nh5 $19 {[%emt 0:01:14]} 46. Rf2 {[%emt 0:01:57]} Ng3+ {[%emt 0:01:30]} 47. Kd1 {[%emt 0:00:02]} (47. Kd3 e4+ 48. Kc3 e3 $17) 47... Ne4 {[%emt 0:00:22]} 48. Rc2 {[%emt 0:00:14]} Rb1+ {[%emt 0:00:47]} 49. Ke2 {[%emt 0:00:12]} (49. Rc1 $17 Rb4 50. Kc2) 49... Ng3+ $1 $19 {[%emt 0:00:02]} 50. Kd2 {[%emt 0:00:13]} Rf1 $2 {[%emt 0:00:21]} (50... Rg1 $19 51. Kc3 Nf5) 51. Rc4 $1 $11 {[%emt 0:00:12]} (51. Rxd6 $2 {loses.} Ne4+ 52. Ke2 Rf2+ 53. Ke3 Rxc2 $19) 51... Rf2+ {[%emt 0:00:23]} 52. Ke1 {[%emt 0:00:04]} Rf1+ {[%emt 0:00:03]} 53. Kd2 {[%emt 0:00:01]} Rf4 {[%emt 0:00:20]} 54. Rxf4 {[%emt 0:00:09]} Kxf4 {[%emt 0:00:01]} 55. Rf8+ {[%emt 0:00:07]} Nf5 {[%emt 0:00:01]} 56. Rf6 {[%emt 0:00:07]} g5 {[%emt 0:00:07]} 57. Ke2 {[%emt 0:00:02]} d5 {[%emt 0:00:02]} 58. Rf8 $2 {[%emt 0:00:04]} (58. Kd3 $11 {and White is okay.}) 58... d4 $2 {[%emt 0:00:03]} (58... Ke4 $19 {...d4 would be deadly.} 59. Kf2 Ng7) 59. Rf6 $2 {[%emt 0:00:04][%mdl 8192]} (59. Kd3 $11) 59... Ke4 $19 {[%emt 0:00:02]} 60. Rg6 {[%emt 0:00:03]} Ng3+ {[%emt 0:00:02]} (60... Ne3 $142 {Hoping for ...d3+.} 61. Kd2 Kf5) 61. Kf2 {[%emt 0:00:02]} Kf5 {[%emt 0:00:02]} 62. Rg8 {[%emt 0:00:03]} e4 {[%emt 0:00:01]} 63. Rd8 {[%emt 0:00:03]} Ke5 {[%emt 0:00:03]} (63... e3+ $142 64. Ke1 Ke4 65. Re8+ Kd3) 64. Rg8 {[%emt 0:00:03]} Kf4 $2 {[%emt 0:00:06]} ({Black should play} 64... e3+ $19 65. Ke1 Ke4) 65. Rf8+ $11 {[%emt 0:00:01]} Nf5 {[%emt 0:00:01]} 66. Ke2 $2 {[%emt 0:00:03][%mdl 8192]} (66. Ke1 $1 $11 {and White has nothing to worry.}) 66... d3+ $2 {[%emt 0:00:06]} (66... Ke5 $19 67. Re8+ Kd5) 67. Kd2 $11 {[%emt 0:00:01]} Ke5 {[%emt 0:00:09]} 68. Re8+ $1 {[%emt 0:00:01]} Kf4 {[%emt 0:00:01]} (68... Kd5 $1 $17 {And now ...Nd6 would win.} 69. Kc3 (69. Rg8 $2 Nd6 $17) 69... Nd6) 69. Rf8 $11 {[%emt 0:00:01]} g4 {[%emt 0:00:05]} (69... Ke5 $5 {[%cal Rf5d6]}) 70. hxg4 {[%emt 0:00:03]} Kxg4 {[%emt 0:00:00]} 71. Rg8+ {[%emt 0:00:01]} Kf4 {[%emt 0:00:01]} 72. Rf8 {[%emt 0:00:01]} Ke5 {[%emt 0:00:05]} 73. Re8+ {[%emt 0:00:01]} Kd5 {[%emt 0:00:01]} (73... Kd4 $5 74. Rd8+ $8 Kc4 75. Rc8+ Kd4 76. Rd8+ Kc4 77. Rc8+ Kd4 78. Rd8+ $11) 74. Kc3 $2 {[%emt 0:00:05][%mdl 8192]} (74. Rh8 $11) 74... Nd6 $2 {[%emt 0:00:06]} ({Better is} 74... Ne3 $19 75. Rg8 Ke5 76. Re8+ Kf4 77. Rf8+ Kg3) 75. Rh8 {[%emt 0:00:02]} Nf5 {[%emt 0:00:02]} 76. Rd8+ {[%emt 0:00:01]} Ke5 {[%emt 0:00:01]} 77. Re8+ {[%emt 0:00:01]} Kf4 {[%emt 0:00:01]} 78. Rf8 $1 {[%emt 0:00:01]} Kg5 {[%emt 0:00:04]} 79. Rg8+ {[%emt 0:00:03]} Kf4 {[%emt 0:00:04]} 80. Rf8 $1 {[%emt 0:00:01]} ({Not} 80. Kd2 $2 Nd6 81. Ke1 (81. Rf8+ $2 Kg3 $19) 81... Ke3 $19) 80... Ke5 {[%emt 0:00:01]} 81. Re8+ {[%emt 0:00:01]} Kd5 {[%emt 0:00:01]} (81... Kf4 $5 82. Rf8 $8 $11) 82. Rd8+ {[%emt 0:00:02]} Nd6 {[%emt 0:00:07]} 83. Rh8 {[%emt 0:00:01]} Nb5+ {[%emt 0:00:03]} 84. Kd2 {[%emt 0:00:02]} Kd4 {[%emt 0:00:02]} 85. Rd8+ {[%emt 0:00:04]} Ke5 {[%emt 0:00:04]} 86. Rh8 {[%emt 0:00:04]} Nd6 {[%emt 0:00:06]} 87. Kc3 {[%emt 0:00:06]} Nb5+ {[%emt 0:00:06]} 88. Kd2 {[%emt 0:00:02]} Nd6 {[%emt 0:00:01]} 89. Kc3 {[%emt 0:00:01]} Kf4 {[%emt 0:00:05]} 90. Rxh4+ {[%emt 0:00:04]} Ke3 {[%emt 0:00:01]} 91. g4 {[%emt 0:00:10]} (91. Rh5 $1 $11 {was the only way to keep the balance.}) 91... Nb5+ $17 {[%emt 0:00:07]} 92. Kb2 $2 {[%emt 0:00:02][%mdl 8192] [#]} (92. Kc4 $17) 92... d2 $1 {[%emt 0:00:09]} 93. Rh1 {[%emt 0:00:03] [#]} Ke2 $2 {[%emt 0:00:02]} (93... Kd3 $1 94. g5 e3 95. g6 e2 96. Rh3+ Ke4 97. Rh4+ Kf5 98. Rh5+ Kf6 99. Rxb5 d1=Q 100. Rb6+ Kg5 101. g7 Qd2+ 102. Kb3 Qd5+ 103. Ka4 Qa2+ 104. Kb5 e1=Q 105. g8=Q+ Qxg8 106. Rd6 Qc3 107. Rd4 Qxd4 108. Ka6 Qa8+ 109. Kb5 Qaa4#) 94. Rh2+ $2 {[%emt 0:00:02][%mdl 8192]} (94. g5 $11 d1=Q 95. Rxd1 Kxd1 96. g6) 94... Ke1 $2 {[%emt 0:00:01]} (94... Kd3 {mates} 95. Rh1 e3 96. Kb3 e2 97. Kb4 Nd4 98. Kc5 e1=Q 99. Rh3+ Ke4 100. Rh8 Qc1+ 101. Kb4 d1=Q 102. Re8+ Kd3 103. Re3+ Kxe3 104. g5 Qb3+ 105. Ka5 Qb5#) 95. Rh1+ $11 {[%emt 0:00:01]} Ke2 {[%emt 0:00:01]} 96. g5 {[%emt 0:00:08]} Nd4 {[%emt 0:00:03]} (96... d1=B $2 97. g6 Nd4 98. Rxd1 Kxd1 99. g7 $18) 97. g6 {[%emt 0:00:02]} Nf5 {[%emt 0:00:01]} (97... d1=B $2 98. Rxd1 Kxd1 99. g7 $18) 98. Kc2 {[%emt 0:00:02]} e3 {[%emt 0:00:04]} 99. Rh2+ {[%emt 0:00:01]} Ke1 {[%emt 0:00:02]} 100. Rh1+ {[%emt 0:00:00]} Ke2 {[%emt 0:00:01]} 101. Rh2+ $1 {[%emt 0:00:01]} Ke1 {[%emt 0:00:02]} 102. Rh1+ {[%emt 0:00:01]} Ke2 {[%emt 0:00:01]} 1/2-1/2

[Event "ChessKid Cup Div-III 2023"]
[Site "Online"]
[Date "2023.05.22"]
[Round "1.2"]
[White "Pichot, Alan"]
[Black "Sasikiran, Krishnan"]
[Result "1-0"]
[ECO "C54"]
[WhiteElo "2638"]
[BlackElo "2604"]
[Annotator "TA"]
[PlyCount "61"]
[EventDate "2023.05.21"]
[EventType "k.o."]
[EventCountry "NET"]
[SourceTitle "playchess.com"]
[Source "ChessBase"]
[SourceQuality "1"]
[TimeControl "900+3"]

{[%evp 11,61,10,16,13,27,9,18,5,9,0,0,0,32,-23,-8,-8,-12,0,0,-24,23,22,11,-33,-8,-23,-22,-29,0,-52,-58,-54,-35,-72,43,51,43,30,47,53,54,54,42,59,44,47,403,398,379,352,311,-81]} 1. e4 {[%emt 0:00:06]} e5 {[%emt 0:00:05]} 2. Nf3 {[%emt 0:00:04]} Nc6 {[%emt 0:00:01]} 3. Bc4 {[%emt 0:00:28]} Nf6 {[%emt 0:00:02]} 4. d3 {[%emt 0:00:03]} Bc5 {[%emt 0:00:05]} 5. c3 {[%emt 0:00:03]} d6 {[%emt 0:00:02]} 6. O-O {[%emt 0:00:04]} a6 {[%emt 0:00:11] Recently 6...a5 got a lot of attention.} 7. a4 {[%emt 0:00:13] C54: Giuoco Piano: 4 c3 Nf6, main lines with 5 d4 and 5 d3.} Ba7 {[%emt 0:00:04]} 8. Na3 {[%emt 0:00:18]} O-O {[%emt 0:01:18]} 9. Nc2 {[%emt 0:00:19] The position is equal.} Ne7 {[%emt 0:00:47]} 10. Bg5 $5 {[%emt 0:00:53][%mdl 4] Exploring less charted territory.} Ng6 {[%emt 0:01:05]} 11. Nh4 {[%emt 0:00:10] [#]} Kh8 $146 {[%emt 0:00:32]} ({Predecessor:} 11... Nf4 12. d4 Be6 13. dxe5 dxe5 14. Bxe6 fxe6 15. Bxf4 exf4 16. e5 Ne4 17. Nf3 Qxd1 18. Raxd1 {0-1 Bologan,V (2640)-Fedoseev,V (2665) RUS-chT rapid 2016 (7.2)}) 12. Nf3 {[%emt 0:02:47]} (12. Nxg6+ $14 fxg6 13. Be3) 12... h6 $11 {[%emt 0:00:31]} 13. Be3 {[%emt 0:00:03]} Bb8 {[%emt 0:01:12]} 14. a5 {[%emt 0:01:34]} Ng4 {[%emt 0:01:41]} 15. d4 {[%emt 0:00:16]} f5 {[%emt 0:01:29]} (15... exd4 $142 16. Nfxd4 (16. Qxd4 Qe7 $11) (16. Ncxd4 Nxe3 17. fxe3 Qe7 $11) (16. Bxd4 c5 $11) (16. cxd4 f5 $11) 16... N6e5) 16. exf5 $1 {[%emt 0:00:26]} Bxf5 {[%emt 0:00:02]} 17. h3 {[%emt 0:00:09]} e4 {[%emt 0:00:58] [#] Hoping for ...Nxe3.} 18. Nd2 {[%emt 0:01:26]} (18. hxg4 Bxg4 19. Bd5 exf3 20. Bxb7 (20. gxf3 $2 Bh3 $19) 20... Ra7 21. Bxf3 Bxf3 22. gxf3 d5 $17) 18... Nf6 {[%emt 0:01:13]} 19. f3 {[%emt 0:00:11]} exf3 {[%emt 0:01:57]} (19... d5 {simplifies} 20. fxe4 Nxe4 21. Nxe4 Bxe4 22. Bd3 Rxf1+ 23. Qxf1 Bxd3 24. Qxd3 Qd6) 20. Rxf3 {[%emt 0:00:41]} (20. Nxf3 $11 c6 21. Bd3 Bxd3 22. Qxd3) 20... Nh4 $1 $15 {[%emt 0:00:33]} 21. Rf4 {[%emt 0:00:27]} d5 {[%emt 0:00:21]} 22. Bb3 {[%emt 0:01:37]} g5 {[%emt 0:00:18] [#]} (22... Qe7 $17 {...Bxc2 would be deadly.} 23. Qe1 (23. Rxh4 Bxc2 24. Qe1 Bxb3 $17) 23... Re8) 23. Rxh4 $1 $14 {[%emt 0:00:15]} gxh4 {[%emt 0:00:02]} 24. Bxh6 {[%emt 0:00:01]} Rg8 {[%emt 0:00:35]} 25. Qf3 $36 {[%emt 0:00:03][%mdl 3072] White has compensation. White has the initiative.} Bh7 {[%emt 0:00:20]} 26. Rf1 {[%emt 0:00:23]} Rg6 {[%emt 0:00:12]} 27. Bf4 {[%emt 0:00:53] Threatens to win with Be5.} c6 {[%emt 0:00:02]} 28. Ne3 {[%emt 0:00:02] Black must now prevent Bc2.} Qd7 $2 {[%emt 0:00:40][%mdl 8192]} (28... Bxf4 $14 29. Qxf4 Qb8) 29. Bc2 $18 {[%emt 0:00:12]} Ne4 {[%emt 0:00:05]} 30. Nxe4 {[%emt 0:01:08]} dxe4 {[%emt 0:00:04]} 31. Qxe4 $2 {[%emt 0:00:11][%mdl 32768] Weighted Error Value: White=0.12 (very precise) /Black=0.35. Loss on time!?} ({Less strong is} 31. Bxe4 Rf6 $16) (31. Qh5 $18 Qg7 32. Ng4 (32. Qxh4 Bxf4 33. Qxf4 Re8 $16) 32... Bxf4 33. Rxf4) 1-0

[Event "ChessKid Cup Div-III 2023"]
[Site "Online"]
[Date "2023.05.22"]
[Round "1.2"]
[White "Chigaev, Maksim"]
[Black "Vaibhav, Suri"]
[Result "1/2-1/2"]
[ECO "D27"]
[WhiteElo "2628"]
[BlackElo "2595"]
[Annotator "TA"]
[PlyCount "71"]
[EventDate "2023.05.21"]
[EventType "k.o."]
[EventCountry "NET"]
[SourceTitle "playchess.com"]
[Source "ChessBase"]
[SourceQuality "1"]
[TimeControl "900+3"]

{[%evp 11,71,29,25,14,23,0,11,-18,-20,-22,-13,-19,-4,-8,0,0,-7,-22,0,0,0,-5,-6,0,0,0,0,-5,-8,-16,0,0,0,0,6,0,11,4,12,17,8,0,0,0,0,0,27,0,0,0,0,0,0,0,0,0,0,0,0,0,0,0]} 1. d4 {[%emt 0:00:06]} d5 {[%emt 0:00:04]} 2. Nf3 {[%emt 0:00:01]} e6 {[%emt 0:00:02]} 3. c4 {[%emt 0:00:01]} dxc4 {[%emt 0:00:01]} 4. e3 {[%emt 0:00:02]} Nf6 {[%emt 0:00:03]} 5. Bxc4 {[%emt 0:00:01]} a6 {[%emt 0:00:00]} 6. O-O {[%emt 0:00:12]} c5 {[%emt 0:00:01]} 7. Re1 {[%emt 0:00:04] D27: Queen's Gambit Accepted: Classical main line: 7 e4!? and 7 a4.} Nc6 {[%emt 0:00:12] 7...Nc6 scores better than 7...b5.} 8. Nc3 {[%emt 0:00:11]} b5 {[%emt 0:00:47]} 9. Bb3 {[%emt 0:00:05]} Bb7 {[%emt 0:00:13]} 10. a3 {[%emt 0:00:17]} (10. d5 {looks sharper.} exd5 11. e4 dxe4 12. Bg5) 10... Be7 {[%emt 0:00:18] [#]} 11. dxc5 $146 {[%emt 0:00:22]} ({Predecessor:} 11. Bc2 O-O 12. Ne4 Nxe4 13. Bxe4 f5 14. Bc2 cxd4 15. exd4 Bf6 16. Be3 Na5 17. Bd2 {0-1 Jankovic,A (2444)-Mikhalchishin,A (2527) Mitropa Cup 23th 2004 (2.1)}) 11... Bxc5 {[%emt 0:00:18]} 12. Bc2 {[%emt 0:00:22]} Qc7 {[%emt 0:02:55]} 13. b4 {[%emt 0:01:38]} Bd6 {[%emt 0:00:02] [#] aiming for ...Ne5.} 14. Ne4 {[%emt 0:00:07]} Nxe4 {[%emt 0:00:42]} (14... Be7 $5 {[%cal Rc6b4]}) 15. Bxe4 {[%emt 0:00:00]} Rd8 {[%emt 0:00:14][%cal Od6h2] Strongly threatening ...Bxh2+!} 16. Qc2 {[%emt 0:00:16]} f5 {[%emt 0:00:12]} 17. Bxc6+ {[%emt 0:00:34]} Qxc6 {[%emt 0:01:24]} 18. Qxc6+ {[%emt 0:00:02]} Bxc6 {[%emt 0:00:00]} 19. Bb2 {[%emt 0:00:00] White is weak on the light squares} Ke7 {[%emt 0:01:16]} 20. Rac1 {[%emt 0:00:27]} Bxf3 {[%emt 0:00:34]} 21. gxf3 {[%emt 0:00:00]} Rc8 {[%emt 0:00:00]} 22. f4 {[%emt 0:01:23]} Rhg8 {[%emt 0:00:19]} 23. Kf1 {[%emt 0:00:13]} Rxc1 {[%emt 0:00:52]} 24. Rxc1 $11 {[%emt 0:00:00][%mdl 4096] Endgame KRB-KRB} g5 {[%emt 0:00:01]} 25. fxg5 {[%emt 0:01:07]} Rxg5 {[%emt 0:00:00]} 26. Rc6 {[%emt 0:00:02]} Bxh2 {[%emt 0:00:04]} 27. Rxa6 {[%emt 0:00:01]} h5 {[%emt 0:00:27]} 28. Ke2 {[%emt 0:01:49]} Rg1 {[%emt 0:01:09]} 29. Ra7+ {[%emt 0:00:32]} Kd6 {[%emt 0:00:01] The position is equal.} 30. Rh7 {[%emt 0:00:47]} Rb1 {[%emt 0:00:02]} 31. Bd4 {[%emt 0:00:01]} Be5 {[%emt 0:00:04]} 32. Bxe5+ {[%emt 0:00:11]} ({Much weaker is} 32. Rxh5 Bxd4 33. exd4 Rb3 $15) 32... Kxe5 {[%emt 0:00:00]} 33. Rb7 {[%emt 0:00:01]} h4 {[%emt 0:00:15]} 34. Rxb5+ {[%emt 0:00:33]} Kf6 {[%emt 0:00:02] [#] White must now prevent ...h3.} 35. Rb8 {[%emt 0:00:59]} Kg7 {[%emt 0:00:02] ...h3 is the strong threat.} 36. Rb7+ {[%emt 0:00:36] Not much happened in this game.   Weighted Error Value: White=0.05 (flawless) /Black=0.04 (flawless)} 1/2-1/2

[Event "ChessKid Cup Div-III 2023"]
[Site "Online"]
[Date "2023.05.22"]
[Round "1.2"]
[White "Bok, Benjamin"]
[Black "Navara, David"]
[Result "1/2-1/2"]
[ECO "D45"]
[WhiteElo "2607"]
[BlackElo "2678"]
[Annotator "TA"]
[PlyCount "128"]
[EventDate "2023.05.21"]
[EventType "k.o."]
[EventCountry "NET"]
[SourceTitle "playchess.com"]
[Source "ChessBase"]
[SourceQuality "1"]
[TimeControl "900+3"]

{[%evp 23,128,0,0,0,3,0,0,0,0,0,0,0,27,8,19,26,30,16,27,1,100,100,240,215,216,225,238,241,593,595,573,569,657,616,577,532,515,500,611,605,632,630,1635,166,167,167,166,147,141,7,7,7,7,8,8,8,8,8,8,8,44,44,44,35,38,38,39,0,0,0,0,0,0,0,0,0,0,0,0,0,0,0,0,0,0,0,0,0,0,0,0,0,0,0,0,0,0,0,0,0,0,0,0,0,0,0,0]} 1. d4 {[%emt 0:00:03] Kapnisis,Spyridon} d5 {[%emt 0:00:09]} 2. c4 {[%emt 0:00:03]} e6 {[%emt 0:00:01]} 3. Nc3 {[%emt 0:00:14]} c6 {[%emt 0:00:02]} 4. e3 {[%emt 0:00:07]} Nf6 {[%emt 0:00:13]} 5. Nf3 {[%emt 0:00:07]} Nbd7 {[%emt 0:00:01]} 6. Qc2 {[%emt 0:00:03]} Bd6 {[%emt 0:00:05]} 7. b3 {[%emt 0:00:14]} O-O {[%emt 0:00:06]} 8. Be2 {[%emt 0:00:02]} b6 {[%emt 0:00:06]} 9. O-O {[%emt 0:00:03]} Bb7 {[%emt 0:00:01]} 10. Bb2 {[%emt 0:00:03]} Qe7 {[%emt 0:00:08]} 11. Rad1 {[%emt 0:00:21]} Rad8 {[%emt 0:00:49]} 12. Rfe1 {[%emt 0:00:15]} Rfe8 {[%emt 0:00:01]} 13. Bf1 {[%emt 0:02:02] D45: Semi-Slav: 5 e3.} c5 {[%emt 0:00:41]} 14. cxd5 {[%emt 0:00:17]} exd5 {[%emt 0:00:00]} 15. dxc5 {[%emt 0:00:05]} bxc5 {[%emt 0:00:00]} 16. Ne2 {[%emt 0:00:04] [#]} Rc8 $146 {[%emt 0:01:23]} ({Predecessor:} 16... Bc7 17. Ng3 Ba5 18. Nf5 Qf8 19. Bc3 Bxc3 20. Qxc3 a6 21. Qa5 Rc8 22. Rc1 g6 {1-0 Bacrot,E (2673)-Korobov,A (2688) ESP-chT CECLUB Honor 2020 (7.3)}) 17. Ng3 {[%emt 0:00:16]} g6 {[%emt 0:00:10] Prevents Nf5.} 18. Bb5 {[%emt 0:00:17]} Bc6 {[%emt 0:00:51]} 19. Bxc6 {[%emt 0:00:06]} Rxc6 {[%emt 0:00:00]} 20. Qc3 {[%emt 0:04:41][%cal Oe3e4]} c4 {[%emt 0:00:06]} 21. Rxd5 {[%emt 0:00:21][%cal Oe1c1][%mdl 64] Back Rank} Bb4 {[%emt 0:00:01]} (21... Rb8 $11 22. Nd4 Nxd5 23. Nxc6 Nxc3 24. Nxe7+ Bxe7 25. Bxc3 cxb3 26. axb3 Rxb3) 22. Rxd7 $1 $16 {[%emt 0:00:02][%mdl 64] Deflection} Qf8 {[%emt 0:00:00] [#]} (22... Bxc3 $16 23. Rxe7 Bxb2 24. Rxa7 cxb3) 23. Qd4 $1 $18 {[%emt 0:00:59]} c3 {[%emt 0:00:50]} 24. Bc1 {[%emt 0:01:14]} (24. Rxa7 $2 cxb2 25. Rf1 Ba3 $19) 24... c2 {[%emt 0:00:11] [#]} 25. Rf1 {[%emt 0:01:10]} (25. Rxa7 Bxe1 26. Nxe1 Rd8 $17) 25... Bc3 $2 {[%emt 0:00:26]} (25... Nxd7 {is a better chance.} 26. Qxd7 Ra6) 26. Qa4 {[%emt 0:00:31]} Rec8 {[%emt 0:00:14]} 27. Rd3 {[%emt 0:00:15]} Rd6 {[%emt 0:00:01]} 28. Rxd6 {[%emt 0:00:47]} Qxd6 {[%emt 0:00:00]} 29. Ne4 {[%emt 0:00:13]} Nxe4 {[%emt 0:00:13]} 30. Qxe4 {[%emt 0:00:02]} Qd1 {[%emt 0:00:00]} 31. Nd4 {[%emt 0:00:22]} Be1 {[%emt 0:00:56]} 32. Qb7 {[%emt 0:00:42][%csl LRa7,LRc8]} Rc3 {[%emt 0:00:41] [#]} 33. Nxc2 $2 {[%emt 0:00:24]} Rxc2 {[%emt 0:00:06]} 34. Qb8+ {[%emt 0:00:03]} Kg7 {[%emt 0:00:01][%cal Bg8g7,Bg7h6,Bh6g5][%mdl 32] [#]} 35. Bb2+ $1 {[%emt 0:00:01][%mdl 576] Decoy} f6 {[%emt 0:00:06]} 36. Qb7+ {[%emt 0:00:11]} (36. Qxa7+ $16 Kg8 37. Qb8+ (37. Bxf6 $2 {leads to mate.} Bxf2+ 38. Kh1 Qxf1#) 37... Kf7 38. Qb7+ Kg8 39. Qa8+ (39. Bxf6 $2 {gets mated.} Bxf2+ 40. Kh1 Qxf1#) 39... Kf7 40. Qb7+ Kg8 41. Qb8+ (41. Bxf6 $2 Bxf2+ 42. Kh1 Qxf1#) 41... Kf7 42. Qb7+) 36... Kh6 $132 {[%emt 0:00:01][%mdl 2048] Black is fighting back} 37. Qf3 {[%emt 0:00:02]} Bxf2+ {[%emt 0:00:41]} 38. Qxf2 {[%emt 0:00:02]} Rxf2 {[%emt 0:00:01][%csl Gd1][%cal Rf2f1]} 39. Rxd1 {[%emt 0:00:01]} Rxb2 {[%emt 0:00:00][%mdl 4096] Endgame KR-KR} 40. Rd6 {[%emt 0:00:05]} Rxa2 {[%emt 0:00:13]} 41. Rxf6 {[%emt 0:00:01]} Kg5 {[%emt 0:00:35]} 42. Rf7 {[%emt 0:00:01]} h5 {[%emt 0:00:01]} 43. h3 {[%emt 0:00:09]} a5 {[%emt 0:00:09]} 44. Ra7 {[%emt 0:00:07]} Kf5 {[%emt 0:00:43]} 45. b4 {[%emt 0:00:01][%cal Bb3b4,Bb4b5,Bb5b6][%mdl 32]} a4 {[%emt 0:00:01] The position is equal.} 46. b5 {[%emt 0:00:00]} Ke5 {[%emt 0:00:17]} 47. b6 {[%emt 0:00:02] aiming for Ra5+.} Kd6 {[%emt 0:00:00]} 48. e4 {[%emt 0:00:06][%cal Be3e4,Be4e5,Be5e6,Be6e7][%mdl 32]} Kc6 {[%emt 0:00:01]} 49. b7 {[%emt 0:00:03]} Kc7 {[%emt 0:00:00]} 50. e5 {[%emt 0:00:01]} Kb8 {[%emt 0:00:05]} 51. Ra5 {[%emt 0:00:02]} Kxb7 {[%emt 0:00:04]} 52. e6 {[%emt 0:00:01] Hoping for Re5.} Kc7 {[%emt 0:00:07]} 53. e7 $1 {[%emt 0:00:09]} Kd7 {[%emt 0:00:01]} 54. Ra7+ {[%emt 0:00:02]} Ke8 {[%emt 0:00:01] ...h4 would be deadly.} 55. h4 {[%emt 0:00:02]} a3 {[%emt 0:00:16]} 56. Kh2 {[%emt 0:00:01]} Ra1 {[%emt 0:00:09]} 57. Kg3 {[%emt 0:00:02]} Kf7 {[%emt 0:00:01]} 58. Kh2 {[%emt 0:00:08]} Ke8 {[%emt 0:00:34]} 59. Kg3 {[%emt 0:00:01]} a2 {[%emt 0:00:12]} 60. Kh2 $1 {[%emt 0:00:01]} Kf7 {[%emt 0:00:04]} 61. Kg3 {[%emt 0:00:02]} Ke8 {[%emt 0:00:01]} 62. Kh2 $1 {[%emt 0:00:01]} Re1 {[%emt 0:00:01]} 63. Rxa2 {[%emt 0:00:02]} Rxe7 {[%emt 0:00:01]} 64. Kh3 {[%emt 0:00:04]} Kf7 {[%emt 0:00:01] White really could win this. An interesting game.   Weighted Error Value: White=0.20 (precise) /Black=0.23 (precise)} 1/2-1/2